Cogmind - Beta 13 @@@ ROGUE MODE // 2024.04.10 @ 00:20:22 Player: Lumi Result: Destroyed by B-86 Titan with Matter Neutralizer Performance ------------- Evolutions (7) 3500 Regions Visited (11) 2200 Robots Destroyed (48) 240 Value Destroyed (1472) 1472 Prototype IDs (4) 80 Alien Tech Used (0) 0 Bonus (682) 682 TOTAL SCORE: 8174 Bonus ------- Follower Combat Kills 724 Friendly Fire -42 Cogmind --------- Core Integrity 0/1300 Matter 300/300 Energy 80/100 System Corruption 17% Temperature Cool (9) Movement Core (50) Location -3/Armory Parts ------- > --- POWER (2) -------- (None) > --- PROPULSION (6) --- Impulse Thruster > --- UTILITY (7) ------ Advanced Signal Interpreter Hacking Suite > --- WEAPON (6) ------- (None) > --- INVENTORY (5) ---- Xenon Bombardment Thruster Advanced Cooling System Huge Storage Unit Heavy Flak Cannon Heavy Flak Cannon Peak State ------------ > --- POWER ------------ Light Antimatter Reactor Light Particle Reactor > --- PROPULSION ------- Xenon Bombardment Thruster Xenon Bombardment Thruster Xenon Bombardment Thruster Impulse Thruster Impulse Thruster Array > --- UTILITY ---------- Advanced Signal Interpreter Hacking Suite > --- WEAPON ----------- Coil Gun Heavy Machine Gun Heavy Machine Gun Heavy Machine Gun > --- INVENTORY -------- Xenon Bombardment Thruster Advanced Cooling System Huge Storage Unit Heavy Flak Cannon Heavy Flak Cannon [Rating: 80] Favorites ----------- Power Nuclear Core Engine Reinforced Deuterium Engine Power Core Nuclear Core Reactor Light Particle Reactor Propulsion Aluminum Leg Leg Aluminum Leg Flight Unit Nuclear Pulse Thruster Utility Advanced Visual Processing Unit Device Advanced ECM Suite Storage Large Storage Unit Processor Advanced Visual Processing Unit Hackware Experimental System Shield Protection Improved Power Shielding Weapon Light Assault Rifle Energy Gun Lightning Gun Energy Cannon Improved EM Pulse Cannon Ballistic Gun Light Assault Rifle Ballistic Cannon Flak Cannon Special Weapon Remote Datajack Impact Weapon Heavy Mace Build | -11 -10 -10 -10 -9 -8 -7 -6 -5 -4 -3 -3 ------- Run | Yrd Mat Min Exi Min Mat Fac Fac Fac Fac Res Arm Slots Evolved 14 | . . . . . 4 2 2 2 2 2 . Power 1 | . . . . . . 1 . . . . . Propulsion 4 | . . . . . 1 . 1 1 . 1 . Utility 5 | . . . . . 2 . 1 1 1 . . Weapon 4 | . . . . . 1 1 . . 1 1 . Parts Attached 90 | 6 7 6 . . 12 20 10 6 6 2 15 Power 12 | 1 . 1 . . . 3 2 . 1 . 4 Engine 4 | 1 . . . . . 2 1 . . . . Core 5 | . . 1 . . . 1 1 . 1 . 1 Reactor 3 | . . . . . . . . . . . 3 Propulsion 34 | 2 5 1 . . 4 6 4 4 1 2 5 Treads . | . . . . . . . . . . . . Leg 18 | 2 3 1 . . 4 6 1 . . . 1 Wheel . | . . . . . . . . . . . . Hover . | . . . . . . . . . . . . Flight 16 | . 2 . . . . . 3 4 1 2 4 Utility 20 | 1 2 3 . . 3 3 1 1 4 . 2 Device 5 | . . . . . 2 1 1 . 1 . . Storage 5 | 1 1 2 . . . . . 1 . . . Processor 7 | . 1 1 . . . 2 . . 2 . 1 Hackware 2 | . . . . . . . . . 1 . 1 Protection 1 | . . . . . 1 . . . . . . Artifact . | . . . . . . . . . . . . Weapon 24 | 2 . 1 . . 5 8 3 1 . . 4 Energy Gun 3 | . . . . . . 2 1 . . . . Energy Cannon 3 | . . . . . . 1 1 1 . . . Ballistic Gun 13 | 2 . 1 . . 4 2 . . . . 4 Ballistic Cannon 1 | . . . . . . 1 . . . . . Launcher . | . . . . . . . . . . . . Special Weapon 1 | . . . . . . 1 . . . . . Impact Weapon 3 | . . . . . 1 1 1 . . . . Slashing Weapon . | . . . . . . . . . . . . Piercing Weapon . | . . . . . . . . . . . . Special Melee Weapon . | . . . . . . . . . . . . Unidentified Prototypes 4 | . 1 . . . . 1 . . 2 . . Corrupted Parts 2 | . . . . . . 2 . . . . . System Corruption 2 | . . . . . . 2 . . . . . Parts Lost 35 | . . . . . 2 6 10 2 . 6 9 Power 5 | . . . . . . . 3 . . . 2 Propulsion 15 | . . . . . . 1 4 2 . 4 4 Utility 4 | . . . . . . 2 . . . 2 . Weapon 11 | . . . . . 2 3 3 . . . 3 Highest Loss Streak 10 | . . . . . 2 4 10 2 . 4 9 To Critical Strikes . | . . . . . . . . . . . . Average Slot Usage (%) 86 | . 96 100 100 100 95 96 75 19 40 25 34 Engine 4 | . 14 2 . . . 11 9 . . . . Core 7 | . . 11 14 14 9 2 . . 4 1 . Leg 21 | . 26 28 28 28 24 22 14 . . . . Flight 2 | . . . . . . . 2 12 14 8 14 Device 3 | . . . . . 11 8 10 . 4 1 . Storage 9 | . 14 14 14 14 9 7 4 . . . . Processor 11 | . 11 14 14 14 9 12 11 5 14 8 2 Ballistic Gun 18 | . 28 28 28 28 22 9 . . . . 6 Ballistic Cannon 1 | . . . . . . 5 4 . . . . Impact Weapon 1 | . . . . . 3 6 4 . . . . Naked Turns 17 | . . . . . . . . . . 17 . Heaviest Build 88 | 13 28 88 31 31 39 66 69 8 16 16 41 Greatest Support 45 | 20 20 20 20 20 30 45 45 19 26 26 41 Greatest Overweight (x) 4 | 2 2 4 1 1 1 2 1 . . . 4 Average Overweight (x) . | . . 1 1 1 1 1 . . . . . Largest Inventory Capacity 25 | 8 15 25 15 15 15 15 15 25 5 5 5 Average Capacity 13 | 7 11 15 15 15 15 15 12 5 5 5 5 Most Carried 20 | 6 10 20 14 15 15 15 15 5 5 5 5 Average Carried 11 | 3 8 13 14 14 14 14 11 4 4 4 4 Final Capacity 15 | 8 15 15 15 15 15 15 5 5 5 5 5 Final Carried 15 | 6 10 14 14 15 15 15 4 4 5 5 5 Class Distribution -------------------- 46% | Mutant 25% | Commander-Mutant 12% | Skirmisher 6% | Assassin Dominant Class ---------------- Mutant | -10/Materials Mutant | -10/Mines Commander-Mutant | -10/Exiles Commander-Mutant | -9/Mines Assassin | -8/Materials Skirmisher | -7/Factory Skirmisher | -6/Factory Mutant | -5/Factory Mutant | -4/Factory Mutant | -3/Research Scavenger-Sprinter | -3/Armory Resources | -11 -10 -10 -10 -9 -8 -7 -6 -5 -4 -3 -3 ----------- Run | Yrd Mat Min Exi Min Mat Fac Fac Fac Fac Res Arm Matter Collected 1890 | 231 161 112 . . 424 228 144 65 6 . 519 Remotely . | . . . . . . . . . . . . Salvage Created 1779 | . 177 125 . . 554 560 319 . . . 44 Parts 101 | . 16 3 . . 32 27 20 . . . 3 Haulers Intercepted 2 | . 1 . . . 1 . . . . . . Recyclers Shooed 2 | . . . . . . . 2 . . . . Parts Field Recycled . | . . . . . . . . . . . . Retrieved Matter . | . . . . . . . . . . . . Parts Self-Destructed . | . . . . . . . . . . . . Prevented . | . . . . . . . . . . . . Kills | -11 -10 -10 -10 -9 -8 -7 -6 -5 -4 -3 -3 ------- Run | Yrd Mat Min Exi Min Mat Fac Fac Fac Fac Res Arm Combat Hostiles Destroyed 32 | . 6 2 . . 9 12 3 . . . . Melee 1 | . . . . . . 1 . . . . . Guns 23 | . 6 2 . . 9 6 . . . . . Cannons 5 | . . . . . . 4 1 . . . . AOE 2 | . . . . . . 1 1 . . . . Classes Destroyed 12 | . 4 2 . . 3 1 2 . . . . Worker 7 | . 1 . . . 1 . 5 . . . . Builder 2 | . . . . . . . 2 . . . . Tunneler 1 | . . 1 . . . . . . . . . Hauler 2 | . 1 . . . 1 . . . . . . Recycler 1 | . . . . . 1 . . . . . . Operator 1 | . . . . . 1 . . . . . . Watcher 2 | . 1 . . . . . . . . . 1 Swarmer 6 | . 6 . . . . . . . . . . Grunt 16 | . . 2 . . 5 8 1 . . . . Sentry 7 | . . . . . 4 2 1 . . . . Specialist 1 | . . . . . . . 1 . . . . Programmer 2 | . . . . . . 2 . . . . . Best Kill Streak 8 | . 5 2 . . 5 4 8 . . . 1 Combat Bots Only 4 | . 3 2 . . 4 4 2 . . . . Max Kills in Single Turn 2 | . 2 1 . . 2 2 1 . . . 1 Gunslinging . | . . . . . . . . . . . . Exploded 1 | . . . . . . 1 1 . . . . Melee 1 | . . . . . . 1 . . . . . Uniques/NPCs Destroyed . | . . . . . . . . . . . . Combat | -11 -10 -10 -10 -9 -8 -7 -6 -5 -4 -3 -3 -------- Run | Yrd Mat Min Exi Min Mat Fac Fac Fac Fac Res Arm Hostile Shots Fired 649 | . 24 11 . . 50 141 120 12 8 118 165 Missed 286 | . 4 1 . . 14 54 50 4 3 65 91 Damage Taken 5840 | . 163 202 . . 599 1071 954 206 154 1199 1292 Core 2003 | . 33 65 . . 89 192 168 77 74 824 481 Absorbed by Shields . | . . . . . . . . . . . . Regen/Repaired (Parts) 44 | . 44 . . . . . . . . . . Core Remaining (%) 82 | 100 . . . 60 83 72 80 92 93 . . Volleys Fired 122 | . 19 9 . . 35 33 21 . . . 5 Largest 3 | . 2 2 . . 3 3 3 . . . 3 Hottest 204 | . 40 45 . . 71 119 204 . . . 90 Shots Fired 296 | . 38 18 . . 88 92 45 . . . 15 Gun 228 | . 38 18 . . 88 67 2 . . . 15 Cannon 67 | . . . . . . 25 42 . . . . Launcher . | . . . . . . . . . . . . Special 1 | . . . . . . . 1 . . . . Kinetic 247 | . 38 18 . . 88 71 17 . . . 15 Thermal 7 | . . . . . . . 7 . . . . Explosive . | . . . . . . . . . . . . Electromagnetic 41 | . . . . . . 21 20 . . . . Robot Hit Streak 20 | . 8 6 . . 9 20 13 . . . 3 Robot Miss Streak 7 | . 6 4 . . 7 4 3 . . . 5 Penetration Max . | . . . . . . . . . . . . Secondary Targets 1 | . . 1 . . . . . . . . . Max Gunslinging Chain 1 | . . 1 . . . . . . . . . Shots Hit Robots 205 | . 20 12 . . 54 70 43 . . . 6 Core Hits 126 | . 15 8 . . 29 43 27 . . . 4 Critical Kills 3 | . . . . . 1 1 . . . . 1 Critical Parts Destroyed 3 | . . . . . . 2 1 . . . . Critical Strikes 6 | . . . . . 1 3 1 . . . 1 Destroy 3 | . . . . . 1 1 . . . . 1 Smash 3 | . . . . . . 2 1 . . . . Melee Attacks 18 | . . . . . 1 14 3 . . . . Impact 18 | . . . . . 1 14 3 . . . . Slashing . | . . . . . . . . . . . . Piercing . | . . . . . . . . . . . . Sneak Attacks 2 | . . . . . . . 2 . . . . Combat Hostiles 1 | . . . . . . . 1 . . . . Follow-up Attacks . | . . . . . . . . . . . . Damage Inflicted 3926 | . 232 110 . . 836 1093 1513 . . . 142 Guns 1918 | . 232 110 . . 836 577 21 . . . 142 Cannons 1136 | . . . . . . 271 865 . . . . Explosions 485 | . . . . . . 120 365 . . . . Melee 383 | . . . . . . 125 258 . . . . Ramming 4 | . . . . . . . 4 . . . . Kinetic 2242 | . 232 110 . . 836 632 290 . . . 142 Thermal 619 | . . . . . . 120 499 . . . . Explosive . | . . . . . . . . . . . . Electromagnetic 678 | . . . . . . 216 462 . . . . Impact 383 | . . . . . . 125 258 . . . . Slashing . | . . . . . . . . . . . . Piercing . | . . . . . . . . . . . . Highest Corruption 17 | . . . . . . 6 4 . . 11 17 Average Corruption 5 | . . . . . . 3 3 . . 5 11 Corruption Purged . | . . . . . . . . . . . . Corruption Blocked . | . . . . . . . . . . . . Effects 30 | . . . . . . 15 2 . . 2 11 Message Errors 5 | . . . . . . 2 1 . . . 2 Matter Fused 9 | . . . . . . 5 1 . . 1 2 Heat Flow Errors 3 | . . . . . . 1 . . . . 2 Energy Discharges 5 | . . . . . . 4 . . . . 1 Data Loss (minor) 1 | . . . . . . . . . . . 1 Data Loss (major) 2 | . . . . . . 1 . . . 1 . Misfires 2 | . . . . . . 2 . . . . . Alerts 1 | . . . . . . . . . . . 1 Misdirections 2 | . . . . . . . . . . . 2 Overload Shots . | . . . . . . . . . . . . Overflow Damage 211 | . . . . . . 41 170 . . . . Projectiles 18 | . . . . . . . 18 . . . . Explosions 15 | . . . . . . . 15 . . . . Melee 178 | . . . . . . 41 137 . . . . Knockbacks 26 | . . . . . . 12 14 . . . . Impact 2 | . . . . . . 1 1 . . . . Kinetic 21 | . . . . . . 11 10 . . . . Secondary 3 | . . . . . . . 3 . . . . Self-Inflicted Damage 155 | . . . . . . 48 107 . . . . Shots 3 | . . . . . . 1 2 . . . . Rammed . | . . . . . . . . . . . . Targets Rammed 1 | . . . . . . . 1 . . . . Kicked 1 | . . . . . . . 1 . . . . Crushed . | . . . . . . . . . . . . Highest Temperature 537 | . . 31 . . 26 443 537 . . . 377 Average Temperature 130 | . . 13 . . 7 142 179 . . . 133 Received Heat Transfer 963 | . . 105 . . 252 357 117 9 18 30 75 Effects 12 | . . . . . . 4 6 . . . 2 Shutdowns 7 | . . . . . . 3 2 . . . 2 Energy Bleed 2 | . . . . . . 1 1 . . . . Interference 1 | . . . . . . . 1 . . . . Matter Decay 1 | . . . . . . . 1 . . . . Damage (major) 1 | . . . . . . . 1 . . . . Siege Activations . | . . . . . . . . . . . . Robots Corrupted 1 | . . . . . . . 1 . . . . Combat Hostiles 1 | . . . . . . . 1 . . . . Parts Fried 3 | . . . . . . 1 2 . . . . Impact Corruptions 4 | . . . . . . 1 3 . . . . Robots Melted . | . . . . . . . . . . . . Combat Hostiles . | . . . . . . . . . . . . Parts Melted . | . . . . . . . . . . . . Heat Transferred 785 | . . . . . . 150 635 . . . . Parts Sabotaged . | . . . . . . . . . . . . Parts Stolen . | . . . . . . . . . . . . Parts Stripped . | . . . . . . . . . . . . Power Chain Reactions 4 | . . . . . . 1 3 . . . . Alert | -11 -10 -10 -10 -9 -8 -7 -6 -5 -4 -3 -3 ------- Run | Yrd Mat Min Exi Min Mat Fac Fac Fac Fac Res Arm Peak Influence 486 | . 227 50 . . 301 128 155 77 162 294 486 Initial 154 | . . . . . . 23 . 7 37 84 154 Average 84 | . 72 17 . . 155 59 65 28 100 163 266 Maximum Alert Level 2 | . 1 . . . 1 . . . . 1 2 Low Security (%) 86 | 100 89 100 . 100 53 100 100 100 100 65 39 Level 1 11 | . 10 . . . 46 . . . . 34 36 Level 2 1 | . . . . . . . . . . . 23 Level 3 . | . . . . . . . . . . . . Level 4 . | . . . . . . . . . . . . Level 5 . | . . . . . . . . . . . . High Security . | . . . . . . . . . . . . Max Security . | . . . . . . . . . . . . Squads Dispatched 17 | . . . . . 4 3 5 2 1 2 . Investigation 2 | . . . . . . 1 1 . . . . Extermination 3 | . . . . . . 2 . . 1 . . Reinforcement 7 | . . . . . 1 . 3 1 . 2 . Assault 1 | . . . . . . . . 1 . . . Garrison 4 | . . . . . 3 . 1 . . . . Intercept . | . . . . . . . . . . . . Searches Triggered . | . . . . . . . . . . . . Construction Impeded . | . . . . . . . . . . . . Haulers Reinforced . | . . . . . . . . . . . . Active Scanning Responses . | . . . . . . . . . . . . Cargo Convoy Interrupts . | . . . . . . . . . . . . Stealth | -11 -10 -10 -10 -9 -8 -7 -6 -5 -4 -3 -3 --------- Run | Yrd Mat Min Exi Min Mat Fac Fac Fac Fac Res Arm Distress Signals 8 | . 1 . . . 3 1 2 . . 1 . Communications Jammed . | . . . . . . . . . . . . Distress Signals . | . . . . . . . . . . . . Times Spotted 122 | . 10 2 . . 19 14 13 6 3 22 33 Peak Tracking Total 19 | . 4 2 . . 5 4 6 4 3 12 19 Tactical Retreats 12 | . 2 . . . 1 1 2 1 1 4 . Traps | -11 -10 -10 -10 -9 -8 -7 -6 -5 -4 -3 -3 ------- Run | Yrd Mat Min Exi Min Mat Fac Fac Fac Fac Res Arm Traps Triggered 5 | . . 1 . . 1 . . . . 2 1 Indirectly . | . . . . . . . . . . . . Trap Hack Attempts . | . . . . . . . . . . . . Triggered . | . . . . . . . . . . . . Disarmed . | . . . . . . . . . . . . Reprogrammed . | . . . . . . . . . . . . Reused . | . . . . . . . . . . . . Traps Extracted . | . . . . . . . . . . . . Installed . | . . . . . . . . . . . . Triggered . | . . . . . . . . . . . . Machines | -11 -10 -10 -10 -9 -8 -7 -6 -5 -4 -3 -3 ---------- Run | Yrd Mat Min Exi Min Mat Fac Fac Fac Fac Res Arm Machines Disabled 2 | . . . . . . 1 1 . . . . Max in Single Turn 1 | . . . . . . 1 1 . . . . Garrison Access 1 | . . . . . . . . 1 . . . Machines Repaired . | . . . . . . . . . . . . Machines Dismantled . | . . . . . . . . . . . . Machines Sabotaged . | . . . . . . . . . . . . Overloaded Fab Kills . | . . . . . . . . . . . . Hacking | -11 -10 -10 -10 -9 -8 -7 -6 -5 -4 -3 -3 --------- Run | Yrd Mat Min Exi Min Mat Fac Fac Fac Fac Res Arm Machines Accessed 20 | . 9 1 1 . 2 1 1 1 2 1 1 Terminals 13 | . 7 . . . 1 1 1 1 1 . 1 Fabricators 1 | . . . . . . . . . 1 . . Repair Stations 1 | . 1 . . . . . . . . . . Recycling Units 2 | . 1 . . . . . . . . 1 . Scanalyzers . | . . . . . . . . . . . . Garrison Access 1 | . . . . . 1 . . . . . . Total Hacks 42 | . 20 1 2 . 4 3 3 1 3 4 1 Successful 24 | . 15 1 2 . 3 . . . 1 2 . Failed 18 | . 5 . . . 1 3 3 1 2 2 1 Catastrophic 3 | . . . . . . 1 . . . 1 1 Database Lockouts . | . . . . . . . . . . . . Manual 27 | . 17 . . . 3 3 1 1 1 . 1 Terminals 29 | . 17 . . . 3 3 3 1 1 . 1 Fabricators 2 | . . . . . . . . . 2 . . Repair Stations 2 | . 2 . . . . . . . . . . Recycling Units 5 | . 1 . . . . . . . . 4 . Scanalyzers . | . . . . . . . . . . . . Garrison Access 1 | . . . . . 1 . . . . . . Terminal Hacks 11 | . 5 1 2 . 3 . . . . . . Record 4 | . 1 . 2 . 1 . . . . . . Open Door 1 | . . 1 . . . . . . . . . Branch Access Points 1 | . 1 . . . . . . . . . . Alert Level 1 | . . . . . 1 . . . . . . Unreport Threat 2 | . 1 . . . 1 . . . . . . Locate Traps 1 | . 1 . . . . . . . . . . Recall Investigation 1 | . 1 . . . . . . . . . . Fabricator Hacks 1 | . . . . . . . . . 1 . . Build 1 | . . . . . . . . . 1 . . Repair Station Hacks 2 | . 2 . . . . . . . . . . Scan Component 1 | . 1 . . . . . . . . . . Repair 1 | . 1 . . . . . . . . . . Recycling Unit Hacks 2 | . . . . . . . . . . 2 . Recycle Component 1 | . . . . . . . . . . 1 . Retrieve Matter 1 | . . . . . . . . . . 1 . Scanalyzer . | . . . . . . . . . . . . Garrison Access Hacks . | . . . . . . . . . . . . Unauthorized Hacks 8 | . 8 . . . . . . . . . . Terminals 7 | . 7 . . . . . . . . . . Assimilate 2 | . 2 . . . . . . . . . . Botnet 5 | . 5 . . . . . . . . . . Fabricators . | . . . . . . . . . . . . Repair Stations . | . . . . . . . . . . . . Recycling Units 1 | . 1 . . . . . . . . . . Monitor 1 | . 1 . . . . . . . . . . Scanalyzers . | . . . . . . . . . . . . Garrison Access . | . . . . . . . . . . . . Data Cores Recovered 2 | . . . . . 1 . . . . . 1 Used . | . . . . . . . . . . . . Hacking Detections 12 | . 5 . . . 1 1 1 . 2 1 1 Full Trace Events 2 | . . . . . . 1 1 . . . . Feedback Events . | . . . . . . . . . . . . Feedback Blocked . | . . . . . . . . . . . . Robot Schematics Acquired . | . . . . . . . . . . . . Robots Built . | . . . . . . . . . . . . Authchips . | . . . . . . . . . . . . Time . | . . . . . . . . . . . . Total Robot Build Rating . | . . . . . . . . . . . . Part Schematics Acquired . | . . . . . . . . . . . . Parts Built 2 | . . . . . . . . . 2 . . Authchips . | . . . . . . . . . . . . Time 128 | . . . . . . . . . 128 . . Total Part Build Rating 16 | . . . . . . . . . 16 . . Parts Repaired 1 | . 1 . . . . . . . . . . Time 26 | . 26 . . . . . . . . . . Parts Recycled 1 | . . . . . . . . . . 1 . Recycled Matter . | . . . . . . . . . . . . Retrieved Matter . | . . . . . . . . . . . . Retrieved Components . | . . . . . . . . . . . . Parts Scanalyzed . | . . . . . . . . . . . . Part Schematics Acquired . | . . . . . . . . . . . . Parts Damaged . | . . . . . . . . . . . . Bothacking | -11 -10 -10 -10 -9 -8 -7 -6 -5 -4 -3 -3 ------------ Run | Yrd Mat Min Exi Min Mat Fac Fac Fac Fac Res Arm Used RIF Installer . | . . . . . . . . . . . . Robots Hacked 1 | . . . . . . . 1 . . . . Non-combat 1 | . . . . . . . 1 . . . . Combat . | . . . . . . . . . . . . Robot Hacks Applied 1 | . . . . . . . 1 . . . . no_distress 1 | . . . . . . . 1 . . . . Relay Couplers Released 2 | . . . . . . . . 2 . . . Machine Destruction 2 | . . . . . . . . 2 . . . Fabnet Peak Effective % . | . . . . . . . . . . . . Robots Rewired 11 | . . . 2 . . . 1 . . . 8 Allies Hacked . | . . . . . . . . . . . . Hacks Repelled . | . . . . . . . . . . . . Allies | -11 -10 -10 -10 -9 -8 -7 -6 -5 -4 -3 -3 -------- Run | Yrd Mat Min Exi Min Mat Fac Fac Fac Fac Res Arm Total Allies 16 | . . 5 2 . . . 1 . . . 8 Largest Group 5 | . . 5 5 5 5 . 1 . . . 4 Highest-Rated Group 224 | . . 87 87 82 82 . 12 . . . 224 Highest-Rated Ally 56 | . . 31 31 21 21 . 12 . . . 56 Total Orders . | . . . . . . . . . . . . Ally Attacks 102 | . . . . . 39 . 2 . . . 61 Total Damage 2525 | . . . . . 468 . 13 . . . 2044 Kills 18 | . . . . . 4 . . . . . 14 Allies Corrupted 1 | . . . . . . . . . . . 1 Allies Melted . | . . . . . . . . . . . . Intel | -11 -10 -10 -10 -9 -8 -7 -6 -5 -4 -3 -3 ------- Run | Yrd Mat Min Exi Min Mat Fac Fac Fac Fac Res Arm Robot Analysis Total . | . . . . . . . . . . . . Derelict Logs Recovered 2 | . . 1 . 1 . . . . . . . Drone Launches . | . . . . . . . . . . . . Drone Recoveries . | . . . . . . . . . . . . Exploration | -11 -10 -10 -10 -9 -8 -7 -6 -5 -4 -3 -3 ------------- Run | Yrd Mat Min Exi Min Mat Fac Fac Fac Fac Res Arm Turns Passed 7329 | 82 596 1092 1947 82 715 1243 473 141 268 354 336 Spaces Moved 5242 | 60 310 534 998 40 293 529 361 267 587 709 554 Core 103 | 10 . . . . . . . . . 57 36 Treads . | . . . . . . . . . . . . Legs 2862 | 50 303 534 998 40 293 529 112 . . . 3 Wheels . | . . . . . . . . . . . . Hover . | . . . . . . . . . . . . Flight 2277 | . 7 . . . . . 249 267 587 652 515 Fastest Speed 29 | 50 107 190 190 190 190 190 30 37 35 35 29 Average Speed 118 | 113 154 191 190 190 190 191 88 39 35 39 37 Slowest Speed 400 | 150 260 400 190 190 190 260 193 40 37 50 250 Overloaded Moves . | . . . . . . . . . . . . Propulsion Burnouts . | . . . . . . . . . . . . Robots Hopped 49 | . . . . . . . 1 . 9 24 15 Cave-ins Triggered . | . . . . . . . . . . . . Exploration Rate (%) 34 | 4 61 93 94 12 31 11 9 12 17 32 34 Regions Visited 11 Branch Regions 4 Pre-discovered Areas 2 | . . 1 . 1 . . . . . . . Known Exits Taken 1 | . 1 . . . . . . . . . . Unknown Exits Taken 10 | 1 . 1 1 1 1 1 1 1 1 1 . Scrap Searched 4 | . . 3 . 1 . . . . . . . Spaces Dug 11 | . . . . . 1 10 . . . . . Terrain Destroyed 17 | . . . . . 1 12 4 . . . . Melee 11 | . . . . . 1 10 . . . . . Projectile . | . . . . . . . . . . . . AOE 6 | . . . . . . 2 4 . . . . Terrain Rammed . | . . . . . . . . . . . . Walls Destroyed . | . . . . . . . . . . . . Machines Disabled . | . . . . . . . . . . . . Actions | -11 -10 -10 -10 -9 -8 -7 -6 -5 -4 -3 -3 --------- Run | Yrd Mat Min Exi Min Mat Fac Fac Fac Fac Res Arm Total 6020 | 71 395 588 1049 46 379 672 469 301 636 760 654 Wait 327 | . 37 21 . 6 23 51 13 25 46 64 41 Move 5142 | 59 309 533 997 39 292 528 358 266 568 666 527 Hop 40 | . . . . . . . 1 . 9 18 12 Pick Up 70 | 6 11 12 . 1 8 12 3 2 5 6 4 Fast Attach 39 | 6 4 . . . 2 5 2 4 4 1 11 Attach 25 | . . . . . 4 5 7 2 2 1 4 Detach 6 | . 2 . . . . . 2 1 . . 1 Swap 26 | . 3 6 . . 6 10 1 . . . . Drop 61 | . 10 7 . . 7 14 12 1 2 4 4 Fire 122 | . 19 9 . . 35 33 21 . . . 5 Melee 18 | . . . . . 1 14 3 . . . . Ram . | . . . . . . . . . . . . Kick 1 | . . . . . . . 1 . . . . Crush . | . . . . . . . . . . . . Escape Stasis . | . . . . . . . . . . . . Rewire 143 | . . . 52 . 1 . 45 . . . 45 Trap . | . . . . . . . . . . . . Miscellaneous . | . . . . . . . . . . . . Route ------- -11/Scrapyard -10/Materials (discovered 2 exits: [*Mat] / *Min) -10/Mines (discovered 3 exits: [*Mat x2] / *Exi) -10/Exiles (discovered 2 exits: [*Min x2]) -9/Mines -8/Materials -7/Factory -6/Factory -5/Factory -4/Factory -3/Research -3/Armory History --------- Turn | Location | Event 15 | -11/Scrapyard | Discovered new exit (range 14) 83 | -11/Scrapyard | Entered Materials 258 | -10/Materials | Discovered new exit (range 16) 313 | -10/Materials | Build established: Mutant 501 | -10/Materials | Repaired Aluminum Leg 554 | -10/Materials | Discovered new exit (range 16) 582 | -10/Materials | Identified exit to Mines 679 | -10/Materials | Entered Mines 808 | -10/Mines | Met a Derelict who couldn't figure out how to use a Trap Extractor 940 | -10/Mines | Assisted by bots powering up and referring to "LRC-V3" 971 | -10/Mines | Discovered new exit (range 11) 1155 | -10/Mines | Discovered new exit (range 14) 1297 | -10/Mines | Learned location of Zion (-7) 1764 | -10/Mines | Deemed a non-threat by the Exiles lab entrance 1764 | -10/Mines | Discovered new exit (range 5) 1771 | -10/Mines | Entered Exiles 1771 | -10/Exiles | Found Exiles lab destroyed 1771 | -10/Exiles | Accompanied by 5 allies 1796 | -10/Exiles | Discovered new exit (range 17) 1801 | -10/Exiles | Led the pair of lost Derelicts to a safe place 2066 | -10/Exiles | Discovered new exit (range 15) 2237 | -10/Exiles | Build established: Commander-Mutant 3718 | -10/Exiles | Entered Mines 3718 | -9/Mines | Accompanied by 5 allies 3744 | -9/Mines | Met a Derelict bent on vengeance 3785 | -9/Mines | Learned Materials machine intel 3785 | -9/Mines | Discovered new exit (range 5) 3786 | -9/Mines | Learned location of Storage (-7) 3800 | -9/Mines | Entered Materials 3800 | -8/Materials | Accompanied by 5 allies 3800 | -8/Materials | Evolved 4 slots: Propulsion x1, Utility x2, Weapon x1 3801 | -8/Materials | Loaded intel: 58 machine locations 3967 | -8/Materials | Garrison activated, responded to threat 4022 | -8/Materials | Lost 4 allies 4474 | -8/Materials | Discovered new exit (range 8) 4515 | -8/Materials | Entered Factory 4515 | -7/Factory | Evolved 2 slots: Power x1, Weapon x1 4600 | -7/Factory | Build established: Assassin 4956 | -7/Factory | Lost 4 parts (1n2u1w) 5101 | -7/Factory | Build established: Skirmisher 5474 | -7/Factory | Build established: Mutant 5723 | -7/Factory | Discovered new exit (range 11) 5758 | -7/Factory | Entered another Factory area 5758 | -6/Factory | Evolved 2 slots: Propulsion x1, Utility x1 5820 | -6/Factory | Garrison activated, responded to threat 5874 | -6/Factory | Build established: Skirmisher 5964 | -6/Factory | Discovered new exit (range 20) 6216 | -6/Factory | Lost 10 parts (3p4n3w) 6231 | -6/Factory | Entered another Factory area 6231 | -5/Factory | Evolved 2 slots: Propulsion x1, Utility x1 6350 | -5/Factory | Discovered new exit (range 10) 6372 | -5/Factory | Entered another Factory area 6372 | -4/Factory | Evolved 2 slots: Utility x1, Weapon x1 6386 | -4/Factory | Build established: Mutant 6520 | -4/Factory | Spotted B-86 Titan 6534 | -4/Factory | Found Prototype Hackware 6534 | -4/Factory | Identified Exp. System Shield 6555 | -4/Factory | Discovered new exit (range 5) 6599 | -4/Factory | Fabricated Mic. Antimatter Reactor? 6640 | -4/Factory | Entered Research 6640 | -3/Research | Evolved 2 slots: Propulsion x1, Weapon x1 6728 | -3/Research | Spotted B-86 Titan 6821 | -3/Research | Spotted B-86 Titan 6845 | -3/Research | Discovered new exit (range 20) 6877 | -3/Research | Lost 4 parts (2n2u) 6957 | -3/Research | Core integrity fell below 50% 6957 | -3/Research | System corruption reached 10% 6994 | -3/Research | Entered Armory 7102 | -3/Armory | Lost 3 allies 7203 | -3/Armory | Core integrity fell below 20% 7300 | -3/Armory | Spotted B-86 Titan 7310 | -3/Armory | Lost 4 allies 7330 | -3/Armory | Destroyed by B-86 Titan with Matter Neutralizer Last Messages --------------- shutdown. 07288_ Power failure, Lgt. Particle Reactor shutdown. 07291_ Packing Station disabled. 07295_ C-30 ARC bursts open, deploying its payload. 07295_ G-73 Enforcer unfolds itself. 07295_ G-67 Veteran unfolds itself. 07297_ Critical hit (Burn: +37). 07299_ Lgt. Particle Reactor destroyed. 07308_ Hvy. Machine Gun destroyed. 07314_ Lgt. Antimatter Reactor destroyed. 07321_ Terminal disabled. 07323_ Hvy. Machine Gun destroyed. 07324_ Xenon Bombardment Thruster destroyed. 07324_ Extraspacial Lockers disabled. 07325_ Xenon Bombardment Thruster destroyed. 07327_ Hvy. Machine Gun destroyed. 07328_ Impulse Thruster Array destroyed. Map ----- +----------------------------------------------------+ | | | | | | | | | | | | | | | | | | | ???????????????????###################???????????? | | ???????????????????# #???????????? | | ???????????????????# #???????????? | | ?????##########????# """""" #???????????? | | ?????# ###### """""" "" #???????????? | | ?????# """ + + """"" T" #???????????? | | ?????#= """ ###### " #???????????? | | ?????# """ ###### #???????????? | | ?????# # ##/################???????????? | | ?????# """ + #??????????????????????? | | ?????# """ # gg #??????????????????????? | | ?????# """ # #####g #??##??????????????????? | | ?????# ## ###???# #?BB#??????????????????? | | ?????#?#########+####### ##BB####Y #????????????? | | ????????# # +????????????? | | ????????# # +????????????? | | ????????# " "" " # @"""" ## #????????????? | | ????????# " "" " # """" #????????????????? | | ????????# " "" " + """" #????????????????? | | ????????# # """" #????????????????? | | ????????##+############# """" ######???????????? | | ?????????# ############ ??????????? | | ?????????# ??????????? | | ?????????# ??????????? | | ?????????####+####+#### w ??????????? | | ???????????? ?? ??# x ######???????????? | | ???????????? ?? ??# #????????????????? | | ??????????? " #?# #????????????????? | | ??????????? "" #?# !!! #????????????????? | | ?????????? "" #?# !! "#????????????????? | | ?????????? "" #?# !! "%#????????????????? | | ????????? "" #?# "####?????????????? | | ????????? " #?# """#?????????????? | | ???????? #?# T"#?????????????? | | ???????? #?# """#?????????????? | | ???????# #?# #########????????? | | ???????# ??# #????????? | | ????################??# #????????? | | ????# #????????# #????????? | | ????# #????????######## #????????? | | ????# #############"T"# #????????? | +----------------------------------------------------+ Best States ------------- Heat Dissipation 46 Energy Generation 39 Energy Capacity 465 Matter Stores 300 Matter Capacity 300 Sight Range 20 Robot Scan Range 15 Terrain Scan Range 16 Terrain Scan Density 210 ECM Strength 4 Power Shielding 66 Evasion (%) 64 Targeting Accuracy 16 Offensive Hacking 10 Defensive Hacking 16 Item Schematics ----------------- None Robot Schematics ------------------ None Fabricated ------------ Mic. Antimatter Reactor | x2 | -4/Factory | Preloaded Alien Tech Used ----------------- None Achievements -------------- A New Friend Challenges ------------ None Game ------ Seed StormTrapBrace Manual? 0 Play Time 01:10:39 Cumulative 32.1 hours Start 2024.04.09 @ 23:10:55 End 2024.04.10 @ 00:20:22 Sessions 1 Manual Loads 0 Difficulty Rogue Special Mode None Game No. 37 Rogue 37 Adventurer 0 Explorer 0 Win Type - Total 0 Types 0/0/0/0/0/0/0/0/0 Lore% 18 Gallery% 33 Achievement% 29 Wizard Run 0 Options --------- Layout 1 ASCII 0 Keyboard 0 Movement Numpad Keybinds 0 Fullscreen 2 Font 24/Smallcaps Map View 50x35 Zoom Use 0% Tactical HUD 1 Map Filters NONE Filters NONE Steam 1 RUN: 3ceea0b6-733f-425f-93cf-32c1f2245308